bitfinex-derivatives/quotes_SOLF0:USTF0_20250614
["timestamp","ask_amount","ask_price","bid_price","bid_amount"]
[1749927550650,5.74502926,144.1,144.07,0.05329555]
[1749927550845,0.04585585,144.1,144.07,0.05329555]
[1749927551246,5.74547398,144.1,144.07,0.05329555]
[1749927551545,0.04585585,144.1,144.07,0.05329555]
[1749927551746,6.938,144.08,144.07,0.05329555]
[1749927562675,0.04585585,144.1,144.07,0.05329555]
[1749927562866,6.40713381,144.2,144.09,5.28559294]
[1749927563068,18.38742478,144.19,144.1,5.28559294]
[1749927563271,5.28559294,144.17,144.1,36.7]
[1749927563569,18.389072,144.16,144.09,36.7]
[1749927563770,5.2873534,144.14,144.11,0.05222412]
[1749927563978,5.69977852,144.13,144.11,0.05222412]
[1749927564165,5.2873534,144.14,144.11,0.05222412]
[1749927564365,5.67124527,144.13,144.11,0.05222412]
[1749927564575,12.60693176,144.12,144.11,0.05222412]
[1749927565570,6.9361,144.12,144.11,0.05222412]
[1749927566876,2.3893,144.15,144.11,0.05222412]
[1749927567076,5.67083526,144.14,144.11,0.05222412]
[1749927567275,2.3893,144.15,144.11,0.05222412]
[1749927567474,6.9351,144.14,144.11,0.05222412]
[1749927569177,6.9351,144.14,144.11,6.98872412]
[1749927570276,6.9357,144.13,144.11,0.05222412]
[1749927570478,5.2873534,144.14,144.11,0.05222412]
[1749927570681,5.67404971,144.14,144.11,0.05222412]
[1749927571275,6.9356,144.13,144.11,0.05222412]
[1749927571481,2.3893,144.15,144.11,0.05222412]
[1749927571674,5.67369886,144.14,144.11,0.05222412]
[1749927571979,6.9361,144.12,144.11,0.05222412]
[1749927572977,4.6688,144.16,144.11,0.05222412]
[1749927573178,10.34343427,144.16,144.11,0.05222412]
[1749927573371,6.9344,144.16,144.11,42.03957752]
[1749927573775,2.2413,144.19,144.11,42.03957752]
[1749927574075,6.9333,144.18,144.14,6.9349]
[1749927574278,6.9333,144.18,144.15,0.05036732]
[1749927577084,6.9333,144.18,144.15,6.98496732]
[1749927578084,6.9328,144.19,144.16,6.9341]
[1749927578679,6.9328,144.19,144.15,43.68476732]
[1749927579084,6.9333,144.18,144.15,43.68476732]
[1749927581285,4.6946,144.21,144.15,0.05036732]
[1749927581286,5.2873534,144.2,144.15,0.05036732]
[1749927581885,6.9342,144.16,144.15,0.05036732]
[1749927582384,6.9356,144.13,144.12,36.68]
[1749927582580,5.2873534,144.16,144.09,36.68]
[1749927582784,36.68,144.19,144.09,36.68]
[1749927582785,5.2873534,144.14,144.09,36.68]
[1749927582982,6.9364,144.12,144.09,36.68]
[1749927583483,6.98213453,144.12,144.09,36.72505282]
[1749927583974,0.04573453,144.12,144.09,43.66245282]
[1749927584573,6.98183453,144.12,144.09,43.66245282]
[1749927584887,0.04573453,144.12,144.09,43.66245282]
[1749927585893,6.98183453,144.12,144.09,36.72505282]
[1749927586390,0.04573453,144.12,144.09,36.72505282]
[1749927586690,0.04573453,144.12,144.09,43.66245282]
[1749927587691,6.98183453,144.12,144.09,43.66245282]
[1749927592586,6.98183453,144.12,144.09,36.72505282]
[1749927597204,0.04573453,144.12,144.09,36.72505282]
[1749927598004,6.9369,144.11,144.09,36.72505282]
[1749927598202,0.04573453,144.12,144.09,36.72505282]
[1749927599301,6.9366,144.11,144.09,36.72505282]
[1749927600206,0.04573453,144.12,144.09,0.04505282]
[1749927600794,6.98213453,144.12,144.09,0.04505282]
[1749927600997,0.04573453,144.12,144.09,0.04505282]
[1749927601595,0.04573453,144.12,144.1,41.9473534]
[1749927602298,0.04573453,144.12,144.11,6.9366]
[1749927602793,0.04573453,144.12,144.1,48.8842534]
[1749927602999,0.04573453,144.12,144.1,41.9473534]
[1749927603606,0.04573453,144.12,144.11,6.9366]
[1749927603902,0.04573453,144.12,144.1,41.9473534]
[1749927604299,0.04573453,144.12,144.1,48.8839534]
[1749927604507,0.04573453,144.12,144.1,41.9473534]
[1749927604904,0.04573453,144.12,144.11,6.9366]
[1749927606501,2.2069,144.2,144.13,6.9353]
[1749927606697,4.83933537,144.19,144.13,6.9353]
[1749927606892,2.2069,144.2,144.13,6.9353]
[1749927607095,7.8495522,144.2,144.13,6.9353]
[1749927607300,4.83929373,144.19,144.14,6.9351]
[1749927607606,7.4942534,144.2,144.15,0.04456686]
[1749927607795,8.24298092,144.19,144.15,0.04456686]
[1749927608002,6.9341,144.16,144.15,0.04456686]
[1749927609710,22.72611046,144.16,144.15,0.04456686]
[1749927609917,17.43875668,144.16,144.15,0.04456686]
[1749927610119,17.43876084,144.16,144.15,0.04456686]
[1749927610331,17.43871888,144.16,144.15,0.04456686]
[1749927610526,6.9359,144.13,144.11,36.66]
[1749927610721,5.2873534,144.15,144.11,36.66]
[1749927611426,6.9361,144.12,144.11,36.66]
[1749927611817,6.9358,144.13,144.11,36.66]
[1749927612024,0.05175515,144.14,144.11,36.66]
[1749927612327,6.9361,144.12,144.11,36.66]
[1749927614028,0.05175515,144.14,144.1,0.04603717]
[1749927614029,6.9366,144.11,144.1,0.04603717]
[1749927617621,0.05175515,144.14,144.1,0.04603717]
[1749927617823,0.05175515,144.14,144.1,6.98283717]
[1749927618026,6.98725515,144.14,144.1,6.98283717]
[1749927619226,6.98725515,144.14,144.11,6.9365]
[1749927619428,0.05175515,144.14,144.11,6.9365]
[1749927620629,6.98705515,144.14,144.11,6.9365]
[1749927620832,0.05175515,144.14,144.11,6.9365]
[1749927622333,6.98685515,144.14,144.1,6.98283717]
[1749927622721,6.98685515,144.14,144.1,0.04603717]
[1749927623033,0.05175515,144.14,144.11,6.9363]
[1749927623237,0.05175515,144.14,144.12,36.64]
[1749927623934,6.98685515,144.14,144.12,36.64]
[1749927624133,0.05175515,144.14,144.12,43.5761]
[1749927626533,6.98715515,144.14,144.12,36.64]
[1749927626739,0.05175515,144.14,144.12,36.64]
[1749927627040,0.05175515,144.14,144.1,0.04603717]
[1749927627237,6.9359,144.13,144.1,0.04603717]
[1749927627741,6.9366,144.11,144.1,0.04603717]
[1749927627935,5.66180418,144.11,144.05,36.64]
[1749927628135,5.2873534,144.1,144.05,36.64]
[1749927628829,6.9386,144.07,144.05,36.64]
[1749927629036,6.9386,144.07,144.06,0.04731647]
[1749927630738,6.9386,144.07,144.02,36.64]
[1749927630739,4.86222678,144.07,144.02,36.64]
[1749927630939,10.14774972,144.06,144.02,36.64]
[1749927631134,5.2873534,144.06,144.02,36.64]
[1749927631334,5.2873534,144.06,144.0,10.0]
[1749927631844,6.9404,144.03,144.02,0.04587499]
[1749927633031,6.98869585,144.04,144.02,0.04587499]
[1749927633440,6.9404,144.03,144.02,0.04587499]
[1749927634336,6.98879585,144.04,144.02,0.04587499]
[1749927635243,0.04869585,144.04,144.02,0.04587499]
[1749927640541,0.04869585,144.04,144.02,6.98677499]
[1749927640944,0.04869585,144.04,144.02,0.04587499]
[1749927644347,4.84568729,144.03,144.0,10.0]
[1749927644547,0.04869585,144.04,144.0,10.0]
[1749927644852,4.84567741,144.03,144.0,10.0]
[1749927645052,6.9405,144.03,144.0,10.0]
[1749927645350,6.9405,144.03,144.0,10.04491208]
[1749927645745,0.04869585,144.04,144.0,10.04491208]
[1749927646250,0.04869585,144.04,144.0,16.98641208]
[1749927646744,6.98899585,144.04,144.0,10.04491208]
[1749927646942,0.04869585,144.04,144.0,10.04491208]
[1749927647342,6.9407,144.03,144.0,10.04491208]
[1749927647847,6.98869585,144.04,144.0,16.98671208]
[1749927648040,4.84064448,144.03,144.0,16.98671208]
[1749927648243,6.98869585,144.04,144.0,10.04491208]
[1749927648448,6.98869585,144.04,144.0,16.98671208]
[1749927650251,6.9405,144.03,144.0,16.98671208]
[1749927650548,6.9405,144.03,144.0,10.04491208]
[1749927650748,0.04869585,144.04,144.0,10.04491208]
[1749927651353,4.84070569,144.03,144.0,10.04491208]
[1749927651544,6.9407,144.03,144.0,10.04491208]
[1749927652050,6.9414,144.01,144.0,10.04491208]
[1749927652648,6.9411,144.02,144.0,10.04491208]
[1749927655654,6.9406,144.03,144.0,10.04491208]
[1749927656347,6.98889585,144.04,144.0,16.98671208]
[1749927656660,0.04869585,144.04,144.0,10.04491208]
[1749927657460,6.9414,144.01,144.0,10.04491208]
[1749927657958,0.04869585,144.04,144.0,10.04491208]
[1749927658349,6.9409,144.02,144.0,10.04491208]
[1749927660261,6.9405,144.03,144.0,16.98671208]
[1749927660564,0.04869585,144.04,144.0,10.04491208]
[1749927660963,0.04869585,144.04,144.01,5.2873534]
[1749927661159,0.04869585,144.04,144.02,6.9408]
[1749927661555,41.9073534,144.11,144.03,36.62]
[1749927661760,4.82876027,144.1,144.03,41.9073534]
[1749927662063,6.9383,144.08,144.04,6.9396]
[1749927662462,41.9073534,144.11,144.04,6.9396]
[1749927662664,0.04443096,144.09,144.06,0.05320853]
[1749927663366,6.938,144.08,144.06,0.05320853]
[1749927664765,6.9385,144.07,144.06,0.05320853]
[1749927665767,0.04443096,144.09,144.06,0.05320853]
[1749927666268,6.9384,144.08,144.06,0.05320853]
[1749927666767,6.98213096,144.09,144.06,0.05320853]
[1749927667167,0.04443096,144.09,144.06,5.34056193]
[1749927667472,41.9073534,144.18,144.08,5.2873534]
[1749927667767,7.43265306,144.17,144.1,5.2873534]
[1749927667974,6.9354,144.14,144.1,12.2240534]
[1749927668165,6.9354,144.14,144.1,5.2873534]
[1749927668366,0.04656363,144.13,144.11,0.0447259]
[1749927669256,6.98236363,144.13,144.11,0.0447259]
[1749927670470,6.9361,144.12,144.11,0.0447259]
[1749927671973,0.04656363,144.13,144.11,0.0447259]
[1749927672273,6.9361,144.12,144.11,0.0447259]
[1749927674667,0.04656363,144.13,144.11,0.0447259]
[1749927677179,0.04656363,144.13,144.11,36.6447259]
[1749927678469,0.04656363,144.13,144.12,6.9361]
[1749927683282,0.04656363,144.13,144.11,43.5811259]
[1749927684185,0.04656363,144.13,144.11,0.0447259]
[1749927684480,5.33391703,144.13,144.05,36.56]
[1749927684675,5.2873534,144.09,144.05,36.56]
[1749927685185,5.2873534,144.09,144.02,43.5008]
[1749927685381,0.05135879,144.07,144.04,0.05135569]
[1749927685678,5.2873534,144.05,144.0,10.0]
[1749927686680,0.04831875,144.04,144.01,0.0527675]
[1749927687085,6.9405,144.03,144.01,0.0527675]
[1749927687382,0.04831875,144.04,144.01,0.0527675]
[1749927687572,6.98851875,144.04,144.01,0.0527675]
[1749927691485,0.04831875,144.04,144.01,0.0527675]
[1749927691681,0.04831875,144.04,144.01,6.9941675]
[1749927691990,0.04831875,144.04,144.01,0.0527675]
[1749927693591,0.04831875,144.04,144.01,6.9939675]
[1749927694092,0.04831875,144.04,144.01,0.0527675]
[1749927694093,6.98831875,144.04,144.01,0.0527675]
[1749927694593,6.9409,144.02,144.01,0.0527675]
[1749927694787,5.33567215,144.04,144.01,0.0527675]
[1749927695788,6.9407,144.03,144.01,0.0527675]
[1749927698202,6.9409,144.02,144.01,0.0527675]
[1749927704508,6.9414,144.01,144.0,10.0]
[1749927704706,0.04831875,144.04,144.0,10.0]
[1749927705010,6.98851875,144.04,144.0,16.9418]
[1749927705211,0.04831875,144.04,144.0,10.0]
[1749927705413,0.04831875,144.04,144.01,0.04943568]
[1749927705605,6.9404,144.03,144.01,0.04943568]
[1749927706004,0.04831875,144.04,144.01,0.04943568]
[1749927706207,6.98851875,144.04,144.01,0.04943568]
[1749927706812,0.04831875,144.04,144.01,5.33678908]
[1749927707510,36.58,144.09,144.03,5.2873534]
[1749927707909,6.9388,144.07,144.03,5.2873534]
[1749927708104,41.8673534,144.12,144.04,36.58]
[1749927708511,6.98198652,144.09,144.07,0.04923277]
[1749927708710,0.04398652,144.09,144.07,0.04923277]
[1749927709112,6.98158652,144.09,144.07,0.04923277]
[1749927709815,6.938,144.08,144.07,0.04923277]
[1749927710306,6.98168652,144.09,144.07,0.04923277]
[1749927712816,6.938,144.08,144.07,0.04923277]
[1749927719119,6.98158652,144.09,144.07,0.04923277]
[1749927719318,0.04398652,144.09,144.07,5.33658617]
[1749927719516,36.56,144.15,144.08,43.498]
[1749927719714,6.937,144.11,144.08,43.498]
[1749927720115,41.8473534,144.15,144.08,36.56]
[1749927720320,6.9374,144.1,144.08,36.56]
[1749927720523,6.98568974,144.1,144.08,36.60792013]
[1749927720825,0.04828974,144.1,144.08,43.54592013]
[1749927721523,0.04828974,144.1,144.08,36.60792013]
[1749927724026,6.98538974,144.1,144.08,36.60792013]
[1749927724226,0.04828974,144.1,144.08,0.04792013]
[1749927724633,6.9375,144.09,144.08,0.04792013]
[1749927725229,6.939,144.06,144.02,36.56]
[1749927725418,5.2873534,144.07,144.02,36.56]
[1749927726023,5.2873534,144.05,144.0,10.0]
[1749927726223,0.04947896,144.04,144.01,0.05116751]
[1749927726433,6.9408,144.03,144.01,0.05116751]
[1749927727531,6.98957896,144.04,144.01,0.05116751]
[1749927728231,0.04947896,144.04,144.02,6.9409]
[1749927728532,0.04947896,144.04,144.02,5.2873534]
[1749927729031,0.04947896,144.04,144.03,6.9404]
[1749927729333,0.04947896,144.04,144.02,12.2280534]
[1749927730324,0.04947896,144.04,144.02,6.9407]
[1749927730525,0.04947896,144.04,144.01,0.05116751]
[1749927730526,0.04947896,144.04,144.01,12.27972091]
[1749927730925,6.98967896,144.04,144.01,12.27972091]
[1749927731122,0.04947896,144.04,144.01,0.05116751]
[1749927731528,6.98957896,144.04,144.01,0.05116751]
[1749927732231,6.9405,144.03,144.01,0.05116751]
[1749927733626,6.9405,144.03,144.01,6.99246751]
[1749927736232,0.04947896,144.04,144.01,0.05116751]
[1749927736623,0.04947896,144.04,144.01,5.33852091]
[1749927736825,0.04947896,144.04,144.03,12.2277534]
[1749927737025,6.9384,144.08,144.03,41.8473534]
[1749927737227,6.9388,144.07,144.03,41.8473534]
[1749927737432,6.9388,144.07,144.04,6.9398]
[1749927737735,6.9381,144.08,144.03,41.8473534]
[1749927737923,0.05250517,144.07,144.05,6.9392]
[1749927738633,0.05250517,144.07,144.04,0.05327073]
[1749927739132,6.99100517,144.07,144.05,6.9393]
[1749927739830,6.99100517,144.07,144.04,6.99297073]
[1749927742842,0.05250517,144.07,144.05,6.9394]
[1749927743027,0.05250517,144.07,144.04,0.05327073]
[1749927743228,6.99100517,144.07,144.05,6.9392]
[1749927743437,0.05250517,144.07,144.04,0.05327073]
[1749927743939,6.99120517,144.07,144.04,6.99297073]
[1749927744233,0.05250517,144.07,144.04,0.05327073]
[1749927744934,6.99100517,144.07,144.04,6.99297073]
[1749927747240,6.99100517,144.07,144.05,6.9394]
[1749927747241,0.05250517,144.07,144.05,6.9394]
[1749927748538,0.05250517,144.07,144.06,6.939]
[1749927751432,48.7524534,144.16,144.09,6.9374]
[1749927751642,13.14915608,144.15,144.08,36.56]
[1749927751837,18.43629838,144.14,144.08,36.56]
[1749927752036,18.43629838,144.14,144.05,43.4793]
[1749927752037,5.2873534,144.12,144.05,43.4793]
[1749927752346,6.9831155,144.1,144.07,0.0449173]
[1749927752534,0.0458155,144.1,144.07,0.0449173]
[1749927752835,6.938,144.08,144.07,0.0449173]
[1749927754041,11.80896846,144.08,144.07,0.0449173]
[1749927754239,6.938,144.08,144.07,0.0449173]
[1749927754445,17.47655628,144.08,144.07,0.0449173]
[1749927754641,6.9392,144.06,144.02,43.4807]
[1749927755243,6.94,144.04,144.02,36.54]
[1749927755447,5.2873534,144.07,144.02,36.54]
[1749927755635,4.91276742,144.06,144.03,0.04847647]
[1749927755839,0.04452835,144.06,144.03,0.04847647]
[1749927756347,6.9399,144.04,144.03,0.04847647]
[1749927757346,6.9411,144.02,144.0,10.0]
[1749927757538,5.2873534,144.05,144.0,10.0]
[1749927757738,2.3386,144.03,144.0,10.0]
[1749927757940,6.9414,144.01,144.0,10.0]
[1749927758647,0.0498413,144.02,144.0,10.0]
[1749927759838,6.9414,144.01,144.0,10.0]
[1749927760942,10.1545863,144.01,143.96,36.56]
[1749927761145,5.2873534,144.01,143.96,36.56]
[1749927761937,0.0498413,144.02,143.99,5.2873534]
[1749927762353,0.0498413,144.02,144.0,36.56]
[1749927763447,0.0498413,144.02,144.0,43.5018]
[1749927763645,0.0498413,144.02,144.0,41.8473534]
[1749927764145,0.0498413,144.02,144.01,6.9414]
[1749927764448,0.0498413,144.02,144.0,41.89143636]
[1749927764850,0.0498413,144.02,144.0,36.60408296]
[1749927765443,0.0498413,144.02,144.0,43.54558296]
[1749927767154,0.0498413,144.02,144.0,36.60408296]
[1749927767337,0.0498413,144.02,144.0,0.04408296]
[1749927767837,6.9414,144.01,144.0,0.04408296]
[1749927775650,0.0498413,144.02,144.0,0.04408296]
[1749927776756,0.0498413,144.02,144.0,6.98548296]
[1749927779467,0.0498413,144.02,144.01,6.9414]
[1749927779765,5.2873534,144.08,144.01,36.74]
[1749927780064,5.2873534,144.08,144.02,6.9406]
[1749927780455,5.2873534,144.08,144.01,36.74]
[1749927780456,6.9393,144.06,144.03,6.9402]
[1749927780657,5.2873534,144.08,144.01,36.74]
[1749927780854,6.9852001,144.06,144.03,0.05337914]
[1749927781264,0.0458001,144.06,144.03,0.05337914]
[1749927781562,6.9398,144.05,144.03,0.05337914]
[1749927781758,5.3331535,144.06,144.03,0.05337914]
[1749927781961,6.9399,144.04,144.03,0.05337914]
[1749927788261,6.9423,143.99,143.95,2.3715]
[1749927788463,5.2873534,144.02,143.95,36.74]
[1749927788662,5.2873534,144.0,143.95,36.74]
[1749927789268,0.04409246,143.99,143.96,0.05150852]
[1749927790671,6.9428,143.98,143.96,0.05150852]
[1749927793975,6.9433,143.97,143.96,0.05150852]
[1749927798277,6.943,143.98,143.96,0.05150852]
[1749927798476,0.04409246,143.99,143.96,0.05150852]
[1749927798779,6.9433,143.97,143.96,0.05150852]
[1749927800672,6.945,143.94,143.92,36.74]
[1749927800880,5.2873534,143.96,143.9,4.6184]
[1749927801376,6.946,143.92,143.9,4.6184]
[1749927801581,5.2873534,143.96,143.9,4.6184]
[1749927801771,0.04778731,143.94,143.92,0.05058116]
[1749927801970,6.99258731,143.94,143.92,0.05058116]
[1749927804081,6.9452,143.93,143.92,0.05058116]
[1749927807870,6.9452,143.93,143.92,8.116e-05]
[1749927808077,0.04778731,143.94,143.92,8.116e-05]
[1749927809577,6.9452,143.93,143.92,8.116e-05]
[1749927812180,0.04778731,143.94,143.92,8.116e-05]
[1749927812383,0.04778731,143.94,143.92,5.28743456]
[1749927812791,0.04778731,143.94,143.93,43.5252]
[1749927816489,6.99248731,143.94,143.93,36.58]
[1749927816691,0.04778731,143.94,143.93,36.58]
[1749927817792,6.99258731,143.94,143.93,36.58]
[1749927819094,0.04778731,143.94,143.93,36.58]
[1749927821605,0.04778731,143.94,143.92,8.116e-05]
[1749927822682,6.9452,143.93,143.92,8.116e-05]
[1749927822888,12.2325534,143.93,143.92,8.116e-05]
[1749927823585,48.7873534,143.93,143.84,36.56]
[1749927823896,5.2873534,143.89,143.84,36.56]
[1749927824587,6.9485,143.87,143.85,0.04588754]
[1749927825993,6.9486,143.86,143.85,0.04588754]
[1749927826196,6.9486,143.86,143.81,2.4055]
[1749927826197,5.2873534,143.87,143.81,38.9855]
[1749927826396,41.8673534,143.89,143.81,38.9855]
[1749927826588,6.9489,143.86,143.82,6.9505]
[1749927827193,0.04849516,143.85,143.83,0.04709945]
[1749927827593,6.99759516,143.85,143.83,0.04709945]
[1749927828294,0.04849516,143.85,143.77,38.8978]
[1749927828485,36.58,143.89,143.77,38.8978]
[1749927828685,36.58,143.89,143.79,6.9516]
[1749927828888,5.2873534,143.88,143.79,5.2873534]
[1749927829094,41.8673534,143.89,143.81,5.2873534]
[1749927829292,0.04876912,143.86,143.84,0.04632134]
[1749927831789,36.96,143.92,143.84,0.04632134]
[1749927832095,36.96,143.92,143.83,7.6236534]
[1749927832294,6.9477,143.88,143.84,6.9493]
[1749927832894,0.04807203,143.87,143.85,0.05335703]
[1749927833492,6.99647203,143.87,143.85,0.05335703]
[1749927833896,6.9486,143.86,143.85,0.05335703]
[1749927835597,6.99637203,143.87,143.85,0.05335703]
[1749927836198,0.04807203,143.87,143.85,0.05335703]
[1749927836700,0.04807203,143.87,143.85,7.00235703]
[1749927844613,0.04807203,143.87,143.85,0.05335703]
[1749927845413,6.9486,143.86,143.85,0.05335703]
[1749927848615,6.95,143.83,143.82,36.58]
[1749927849118,6.95,143.83,143.8,6.9514]
[1749927849504,6.99452352,143.83,143.8,6.99977464]
[1749927850227,0.04452352,143.83,143.8,0.04837464]
[1749927850816,6.9508,143.82,143.8,0.04837464]
[1749927851710,0.04452352,143.83,143.8,0.04837464]
[1749927852016,6.951,143.81,143.8,0.04837464]
[1749927852914,0.04452352,143.83,143.8,0.04837464]
[1749927852915,6.9507,143.82,143.8,0.04837464]
[1749927853222,0.04452352,143.83,143.8,0.04837464]
[1749927853420,6.9508,143.82,143.8,0.04837464]
[1749927853621,5.33187692,143.83,143.8,0.04837464]
[1749927854127,6.951,143.81,143.8,0.04837464]
[1749927854426,5.33187692,143.83,143.8,42.31572804]
[1749927854427,0.04452352,143.83,143.8,42.31572804]
[1749927854723,8.66136081,143.91,143.8,42.31572804]
[1749927854724,7.41614817,143.89,143.82,5.2873534]
[1749927854919,7.5271534,143.91,143.84,6.9491]
[1749927855121,6.9481,143.87,143.84,43.9291]
[1749927855319,5.2873534,143.89,143.84,36.98]
[1749927855620,6.9486,143.86,143.85,0.04785634]
[1749927857017,6.9483,143.87,143.85,0.04785634]
[1749927857218,0.05033626,143.88,143.85,0.04785634]
[1749927857414,6.99843626,143.88,143.85,0.04785634]
[1749927857928,0.05033626,143.88,143.85,42.31520974]
[1749927858115,0.05033626,143.88,143.85,37.02785634]
[1749927858316,0.05033626,143.88,143.85,43.97655634]
[1749927858515,0.05033626,143.88,143.86,5.2873534]
[1749927858922,0.05033626,143.88,143.87,6.9481]
[1749927859126,0.05033626,143.88,143.86,5.2873534]
[1749927859519,0.05033626,143.88,143.86,12.2355534]
[1749927859916,0.05033626,143.88,143.86,6.9482]
[1749927860117,0.05033626,143.88,143.85,37.02785634]
[1749927860431,0.05033626,143.88,143.85,42.31520974]
[1749927860725,0.05033626,143.88,143.86,6.9483]
[1749927870229,6.9481,143.87,143.85,43.97675634]
[1749927870540,6.9481,143.87,143.85,37.02785634]
[1749927870726,0.05033626,143.88,143.85,0.04785634]
[1749927870926,5.2873534,143.87,143.81,37.18]
[1749927871127,7.7011534,143.87,143.81,37.18]
[1749927871326,6.9488,143.86,143.83,6.9497]
[1749927871635,0.05033626,143.88,143.81,37.18]
[1749927871835,6.9495,143.85,143.81,44.1306]
[1749927872043,0.05342562,143.84,143.82,0.05271632]
[1749927873532,0.05342562,143.84,143.82,7.00321632]
[1749927875639,7.00302562,143.84,143.82,7.00321632]
[1749927875936,7.00302562,143.84,143.82,0.05271632]
[1749927876139,6.95,143.83,143.82,0.05271632]
[1749927878944,6.9518,143.8,143.78,37.2]
[1749927879141,5.2873534,143.83,143.76,4.7612]
[1749927879433,6.9519,143.8,143.76,11.7142]
[1749927879641,6.9519,143.8,143.76,4.7612]
[1749927879831,5.2873534,143.83,143.76,4.7612]
[1749927880031,0.04960975,143.81,143.78,0.04776755]
[1749927880228,6.9515,143.8,143.78,0.04776755]
[1749927880942,6.952,143.79,143.78,0.04776755]
[1749927881335,0.04960975,143.81,143.78,0.04776755]
[1749927881741,0.04960975,143.81,143.78,5.33512095]
[1749927881941,0.04960975,143.81,143.79,37.2]
[1749927882636,0.04960975,143.81,143.8,6.9515]
[1749927882836,0.04960975,143.81,143.8,12.2388534]
[1749927883039,5.2873534,143.87,143.8,5.2873534]
[1749927883239,37.2,143.88,143.8,5.2873534]
[1749927884054,0.05043381,143.85,143.83,0.04979591]
[1749927884244,0.05043381,143.85,143.83,37.24979591]
[1749927885137,0.05043381,143.85,143.84,6.9495]
[1749927885548,0.05043381,143.85,143.83,37.24979591]
[1749927885940,0.05043381,143.85,143.83,44.19959591]
[1749927886743,0.05043381,143.85,143.84,6.9496]
[1749927887132,0.05043381,143.85,143.83,37.24979591]
[1749927887337,0.05043381,143.85,143.83,44.19949591]
[1749927887538,0.05043381,143.85,143.83,37.24979591]
[1749927888245,0.05043381,143.85,143.84,6.9496]
[1749927888751,0.05043381,143.85,143.83,44.19939591]
[1749927894452,0.05043381,143.85,143.84,6.9496]
[1749927894651,0.05043381,143.85,143.83,37.24979591]
[1749927895745,0.05043381,143.85,143.83,44.19959591]
[1749927896044,0.05043381,143.85,143.83,37.24979591]
[1749927896353,0.05043381,143.85,143.83,42.53714931]
[1749927896552,4.5626,143.93,143.83,42.53714931]
[1749927896553,9.8499534,143.93,143.83,42.53714931]
[1749927896748,9.8499534,143.93,143.85,5.2873534]
[1749927897142,6.9465,143.91,143.87,6.9477]
[1749927897547,0.04912439,143.9,143.88,0.04770591]
[1749927898053,6.99602439,143.9,143.88,0.04770591]
[1749927899843,6.9471,143.89,143.88,0.04770591]
[1749927900044,12.2344534,143.89,143.88,5.91e-06]
[1749927900850,17.81743681,143.89,143.78,2.2361]
[1749927901061,5.2873534,143.84,143.77,437.22]
[1749927901756,5.2873534,143.84,143.77,36.92]
[1749927901955,0.05021882,143.82,143.79,0.05088222]
[1749927902445,6.9518,143.8,143.79,0.05088222]
[1749927909851,0.05021882,143.82,143.79,0.05088222]
[1749927910257,0.05021882,143.82,143.79,7.00248222]
[1749927911155,0.05021882,143.82,143.79,0.05088222]
[1749927911664,6.951,143.81,143.79,0.05088222]
[1749927911866,0.05021882,143.82,143.79,0.05088222]
[1749927912258,0.05021882,143.82,143.79,7.00248222]
[1749927913563,7.00101882,143.82,143.79,7.00248222]
[1749927913771,7.00101882,143.82,143.79,0.05088222]
[1749927914774,0.05021882,143.82,143.79,0.05088222]
[1749927915372,0.05021882,143.82,143.8,6.9512]
[1749927917674,0.05021882,143.82,143.81,6.951]
[1749927918469,0.05021882,143.82,143.8,12.2387534]
[1749927918663,0.05021882,143.82,143.79,0.05088222]
[1749927919074,6.951,143.81,143.79,0.05088222]
[1749927919474,0.05021882,143.82,143.79,0.05088222]
[1749927919776,0.05021882,143.82,143.8,6.9514]
[1749927919976,0.05021882,143.82,143.79,0.05088222]
[1749927920174,0.05021882,143.82,143.81,6.951]
[1749927921975,36.92,143.86,143.82,6.9501]
[1749927922176,6.9493,143.85,143.82,6.9501]
[1749927922877,6.99661074,143.85,143.82,6.99430858]
[1749927924179,6.9496,143.84,143.82,0.04420858]
[1749927926676,6.99661074,143.85,143.82,6.99470858]
[1749927928181,0.04731074,143.85,143.83,6.9498]
[1749927928579,0.04731074,143.85,143.82,0.04420858]
[1749927928774,6.9498,143.84,143.82,0.04420858]
[1749927930281,6.95,143.83,143.82,0.04420858]
[1749927933684,0.04731074,143.85,143.82,0.04420858]
[1749927934085,6.99661074,143.85,143.82,6.99450858]
[1749927934385,0.04731074,143.85,143.82,5.33156198]
[1749927934783,0.04731074,143.85,143.83,6.9498]
[1749927936686,6.99651074,143.85,143.83,6.9498]
[1749927936984,0.04731074,143.85,143.83,6.9498]
[1749927937286,0.04731074,143.85,143.82,12.28196198]